bitfinex-derivatives/quotes_ETHF0:USTF0_20250828
["timestamp","ask_amount","ask_price","bid_price","bid_amount"]
[1756345386281,1.5982,4513.6,4513.5,0.90127]
[1756345386480,21.9516,4513.6,4513.5,1.66127]
[1756345387081,21.9516,4513.6,4513.5,2.06957]
[1756345387388,0.2783,4513.6,4513.5,2.06957]
[1756345388595,21.9516,4514.2,4514.1,2.06951]
[1756345388784,1.3746,4514.2,4514.1,2.06951]
[1756345391987,0.4764,4514.6,4514.5,2.06948]
[1756345392183,0.4708,4514.6,4514.5,0.3063]
[1756345392392,0.6314,4514.5,4514.3,0.90119]
[1756345392585,1.3746,4514.4,4514.3,1.19039]
[1756345393386,1.0755,4514.4,4514.3,2.06949]
[1756345393588,0.2783,4514.4,4514.3,2.06949]
[1756345393886,9.1646,4514.7,4514.6,1.76317]
[1756345394082,9.1646,4514.7,4514.6,2.06947]
[1756345394984,9.3894,4514.7,4514.6,0.90117]
[1756345395190,9.3894,4514.7,4514.6,0.39867]
[1756345395591,1.5994,4514.7,4514.6,1.08897]
[1756345395793,19.9834,4514.7,4514.6,1.66117]
[1756345396089,0.6689,4514.5,4514.4,0.39868]
[1756345396290,1.5994,4514.5,4514.4,0.39868]
[1756345396592,1.5994,4514.5,4514.4,0.90118]
[1756345397686,1.5994,4514.5,4514.4,0.39868]
[1756345397991,1.5994,4514.1,4514.0,0.70502]
[1756345398695,1.5994,4514.1,4513.9,3.2078]
[1756345398890,1.5994,4514.0,4513.9,3.2078]
[1756345399290,1.3746,4514.0,4513.9,4.8786]
[1756345400985,0.5239,4513.9,4513.6,0.3063]
[1756345401182,3.2078,4513.9,4513.3,0.3063]
[1756345401387,1.3746,4513.0,4512.9,1.15148983]
[1756345401588,1.3746,4513.0,4512.9,1.84898983]
[1756345401791,1.3746,4513.0,4512.9,42.64898983]
[1756345401986,1.3746,4513.0,4512.9,42.4708]
[1756345402182,0.2248,4513.6,4512.9,2.40842194]
[1756345402492,1.3746,4513.3,4513.2,1.6708]
[1756345402793,1.5994,4513.3,4513.2,0.5025]
[1756345402987,1.3746,4513.3,4513.2,0.9733]
[1756345403187,4.8072,4513.9,4513.8,0.9733]
[1756345403388,25.3752,4513.9,4513.8,0.3063]
[1756345403693,0.8937,4513.6,4513.5,0.3063]
[1756345403892,1.5994,4513.6,4513.5,0.3063]
[1756345404093,1.0755,4513.6,4513.4,0.3063]
[1756345404293,1.1928,4513.5,4513.4,0.3063]
[1756345404492,1.5994,4513.3,4513.2,0.3063]
[1756345404696,22.1674,4513.3,4513.2,0.3063]
[1756345404888,22.1674,4513.3,4513.2,0.5025]
[1756345405088,22.1674,4513.3,4513.2,0.6903]
[1756345406200,22.1674,4513.3,4513.2,0.3063]
[1756345406392,0.1925,4512.6,4512.5,41.8038]
[1756345406602,21.2359,4512.8,4512.7,1.06584]
[1756345406788,21.6425,4512.8,4512.7,2.06964]
[1756345407298,21.0434,4512.8,4512.7,2.06964]
[1756345407494,0.4764,4512.8,4512.7,2.06964]
[1756345409098,1.5994,4512.8,4512.7,2.06964]
[1756345409296,1.3746,4512.8,4512.7,2.06964]
[1756345409498,0.2783,4512.8,4512.7,2.06964]
[1756345409799,21.9416,4513.1,4513.0,1.6708]
[1756345410001,0.968,4512.6,4512.5,0.9733]
[1756345410303,1.3746,4512.6,4512.5,2.06965]
[1756345410494,21.2727,4513.1,4512.7,0.39883]
[1756345410691,21.9416,4513.1,4513.0,1.2625]
[1756345410892,21.9416,4513.1,4513.0,1.6708]
[1756345413196,22.1653,4513.1,4513.0,1.6708]
[1756345413902,22.1653,4513.1,4513.0,1.2625]
[1756345414101,22.1653,4513.1,4513.0,0.5025]
[1756345414303,1.3396,4512.0,4511.6,0.2949]
[1756345414602,1.3396,4511.5,4511.4,2.03745]
[1756345414791,1.3396,4511.5,4511.4,42.83745]
[1756345415000,1.3396,4511.5,4511.4,42.4385]
[1756345415304,1.3396,4511.5,4511.4,1.6385]
[1756345415500,1.5633,4511.5,4511.4,0.9384]
[1756345416002,22.1273,4511.5,4511.4,0.9384]
[1756345416305,22.1273,4511.5,4511.4,0.2949]
[1756345417805,21.2258,4511.5,4511.2,0.2949]
[1756345418004,1.5633,4511.3,4511.2,0.2949]
[1756345418507,1.5633,4511.3,4510.8,3.4931]
[1756345418698,1.057,4510.9,4510.8,4.8463]
[1756345419703,1.057,4510.9,4510.8,5.2453]
[1756345419900,0.4651,4510.9,4510.8,5.2453]
[1756345420801,0.8603,4510.9,4510.8,5.2453]
[1756345421000,1.057,4510.9,4510.8,5.2453]
[1756345421796,1.5633,4510.9,4510.8,3.5027]
[1756345421994,1.5633,4510.9,4510.8,0.2949]
[1756345422400,1.3396,4510.9,4510.6,0.2949]
[1756345422600,0.6618,4510.7,4510.6,0.2949]
[1756345422800,0.2237,4510.6,4510.3,0.2949]
[1756345423006,1.057,4510.4,4510.0,0.57749339]
[1756345423209,1.5633,4510.2,4510.1,0.4838]
[1756345423606,0.6618,4509.9,4509.8,3.3967]
[1756345423811,1.3396,4509.9,4509.8,3.6916]
[1756345424016,1.3396,4509.9,4509.8,4.8463]
[1756345424711,20.563,4510.0,4509.9,2.03758]
[1756345424907,20.563,4510.0,4509.9,1.6385]
[1756345425113,21.9026,4510.0,4509.9,1.6385]
[1756345426207,22.1263,4510.0,4509.9,0.9384]
[1756345426411,22.1263,4510.0,4509.9,0.4838]
[1756345426814,22.1263,4510.0,4509.9,0.2949]
[1756345428313,21.9026,4510.0,4509.7,0.2949]
[1756345428516,21.9026,4510.0,4509.6,0.4742]
[1756345428517,1.3396,4509.7,4509.6,0.4742]
[1756345428715,22.1273,4509.7,4509.6,0.1889]
[1756345429109,22.1273,4509.7,4509.6,0.4838]
[1756345429414,1.5633,4509.6,4509.5,0.4838]
[1756345429614,1.5633,4509.6,4509.5,0.2949]
[1756345429808,1.5633,4509.6,4509.5,0.4838]
[1756345430008,1.5633,4509.6,4509.5,0.9384]
[1756345430205,1.5633,4509.6,4509.5,0.2949]
[1756345432817,1.3396,4509.2,4509.1,0.7691]
[1756345433018,21.4233,4509.2,4509.1,1.6385]
[1756345433215,21.4233,4509.2,4509.0,1.80567331]
[1756345433216,4.2648,4509.7,4509.6,0.39911]
[1756345433412,25.1114,4509.7,4509.6,2.03761]
[1756345433613,25.1104,4509.7,4509.6,2.03761]
[1756345433813,25.1104,4509.7,4509.6,1.6385]
[1756345434018,25.1104,4509.7,4509.6,0.2949]
[1756345434220,0.6618,4509.3,4509.2,0.6435]
[1756345434419,21.9036,4509.3,4509.2,1.6385]
[1756345435324,21.7321,4509.3,4509.2,0.9384]
[1756345435621,21.5084,4509.3,4509.2,1.6385]
[1756345435919,21.9036,4509.3,4509.2,1.6385]
[1756345436416,21.9026,4509.3,4509.2,1.2237]
[1756345436623,22.1263,4509.3,4509.2,1.2237]
[1756345436926,21.9026,4509.3,4509.2,1.6385]
[1756345437115,21.9036,4509.3,4509.2,1.6385]
[1756345437723,21.0281,4509.3,4509.2,1.4496]
[1756345438021,21.9026,4509.3,4509.2,5.24544]
[1756345438520,21.9026,4509.3,4509.2,4.8463]
[1756345439128,21.9026,4509.3,4509.2,4.4315]
[1756345439425,22.1263,4509.3,4509.2,4.4315]
[1756345439721,22.1263,4509.3,4509.2,0.2949]
[1756345440319,1.3396,4509.1,4509.0,1.6385]
[1756345440525,1.057,4509.1,4509.0,1.6385]
[1756345440723,11.738,4509.1,4509.0,1.6385]
[1756345441123,12.0206,4509.1,4509.0,1.6385]
[1756345442329,21.5396,4509.9,4509.8,1.6736]
[1756345442522,21.7641,4509.9,4509.8,1.2614]
[1756345442723,0.3961,4509.8,4509.6,0.3021]
[1756345443023,0.6683,4509.0,4508.9,3.7045]
[1756345443226,22.1582,4509.0,4508.9,3.7045]
[1756345444423,21.9337,4509.0,4508.9,4.4692]
[1756345444827,21.9337,4509.0,4508.9,4.8814]
[1756345445332,1.0644,4509.0,4508.9,4.8814]
[1756345445629,0.4758,4509.0,4508.9,4.8814]
[1756345446533,1.3727,4509.0,4508.9,4.8814]
[1756345447632,1.3727,4509.4,4509.3,1.6736]
[1756345447832,12.2367,4509.4,4509.3,2.07274]
[1756345449231,12.4612,4509.4,4509.3,0.89584]
[1756345449932,12.4612,4509.4,4509.3,0.4967]
[1756345450131,12.2367,4509.4,4509.3,1.6736]
[1756345450331,21.9307,4509.4,4509.3,1.6736]
[1756345452230,0.4758,4509.6,4509.5,1.87812]
[1756345452538,1.02108347,4509.6,4509.5,2.07272]
[1756345452745,20.8643,4509.7,4509.5,2.07272]
[1756345453036,21.9287,4509.7,4509.6,3.08011331]
[1756345453227,22.47398337,4509.7,4509.6,3.08011331]
[1756345453425,22.47398337,4509.7,4509.6,1.6736]
[1756345454130,22.69848337,4509.7,4509.6,1.6736]
[1756345454330,22.47398337,4509.7,4509.6,42.4736]
[1756345454530,1.91798337,4509.7,4509.6,42.4736]
[1756345454730,1.3727,4509.7,4509.6,42.4736]
[1756345455732,20.555,4509.8,4509.7,0.3991]
[1756345455935,1.40651331,4513.6,4510.6,2.07262]
[1756345455936,1.3727,4510.7,4510.6,2.07262]
[1756345457136,12.8277,4510.9,4510.8,1.66041]
[1756345457332,12.8277,4510.9,4510.8,2.07261]
[1756345457540,1.5972,4510.9,4510.8,1.2614]
[1756345457731,1.5972,4510.9,4510.8,0.9661]
[1756345458529,1.5972,4510.9,4510.8,1.2614]
[1756345459037,1.3727,4510.9,4510.8,1.2614]
[1756345459242,1.3727,4510.9,4510.8,1.6736]
[1756345459939,1.0644,4510.9,4510.8,1.6736]
[1756345460139,1.3727,4510.9,4510.8,1.6736]
[1756345461437,1.5972,4510.9,4510.8,0.4967]
[1756345461743,1.5972,4510.9,4510.8,0.3021]
[1756345462544,1.5972,4510.9,4510.8,0.792]
[1756345462834,1.3727,4510.9,4510.8,1.6736]
[1756345464538,1.5972,4510.9,4510.8,1.2614]
[1756345464938,1.5972,4510.9,4510.8,0.9661]
[1756345465440,1.5972,4510.9,4510.8,1.2614]
[1756345465638,0.9289,4510.8,4510.3,1.0096]
[1756345465833,1.3727,4510.4,4510.3,2.07265]
[1756345466039,1.3727,4510.8,4510.7,2.07262]
[1756345468137,1.3727,4510.8,4510.7,1.6736]
[1756345472643,0.3961,4510.8,4510.7,1.6736]
[1756345472947,1.3667,4511.1,4511.0,0.6618]
[1756345473147,1.3667,4511.1,4511.0,1.6875]
[1756345475035,1.5906,4511.1,4511.0,1.6875]
[1756345475240,1.5906,4511.1,4511.0,1.2601]
[1756345475739,0.6519,4510.6,4510.5,0.5031]
[1756345475938,0.6316,4510.5,4510.2,3.6352]
[1756345476144,1.3667,4510.3,4510.2,4.6002]
[1756345476344,1.3667,4510.3,4510.2,4.8953]
[1756345476845,1.5906,4510.3,4510.2,0.2951]
[1756345477036,7.477,4510.6,4509.9,0.2951]
[1756345477037,0.4579,4510.0,4509.9,0.2951]
[1756345477237,1.5906,4510.0,4509.9,0.2951]
[1756345477847,3.2078,4510.4,4509.9,0.9569]
[1756345478049,3.2078,4510.4,4509.7,3.21153237]
[1756345478050,3.8597,4510.4,4510.3,1.6875]
[1756345478251,4.7984,4510.4,4510.3,1.2601]
[1756345478445,4.7984,4510.4,4510.3,0.495]
[1756345478750,4.7984,4510.4,4510.3,0.2951]
[1756345479847,1.5906,4510.2,4510.1,0.2951]
[1756345480538,1.0596,4509.8,4509.7,4.17653237]
[1756345480742,1.5906,4509.8,4509.7,0.00373237]
[1756345480941,1.3667,4509.8,4509.7,0.66553237]
[1756345481150,1.3667,4509.8,4509.7,1.69123237]
[1756345481350,0.4579,4510.2,4510.1,1.6875]
[1756345481555,3.2078,4510.4,4510.3,1.6875]
[1756345482148,4.5745,4510.4,4510.3,1.6875]
[1756345484555,4.7984,4510.4,4510.3,0.2951]
[1756345485552,4.5745,4510.4,4510.3,1.6875]
[1756345486354,4.7984,4510.4,4510.3,1.2601]
[1756345487454,4.5745,4510.4,4510.3,1.6875]
[1756345487952,3.2078,4510.4,4510.3,1.6875]
[1756345488153,1.3667,4510.4,4510.3,1.6875]
[1756345491359,0.8656,4510.4,4510.3,1.6875]
[1756345491554,0.765,4510.7,4510.6,0.39903]
[1756345491756,1.3667,4510.7,4510.6,2.08653]
[1756345492257,23.7328,4511.0,4510.9,0.399]
[1756345492458,25.0995,4511.0,4510.9,2.0865]
[1756345492760,4.5745,4511.0,4510.9,2.0865]
[1756345493357,3.2078,4511.0,4510.9,2.0865]
[1756345494454,4.5745,4511.0,4510.9,2.0865]
[1756345494960,4.7984,4511.0,4510.9,0.6941]
[1756345495856,3.6657,4511.0,4510.9,1.3559]
[1756345496157,1.56941085,4513.0,4510.9,1.3559]
[1756345496158,0.8758,4512.6,4512.5,1.35576]
[1756345496366,0.6519,4512.6,4512.5,2.08636]
[1756345496665,1.3667,4512.6,4512.5,2.08636]
[1756345500455,0.8656,4512.6,4512.5,2.08636]
[1756345500856,1.3667,4512.6,4512.5,2.08636]
[1756345501758,1.0596,4512.6,4512.5,2.08636]
[1756345501962,4.3979,4512.8,4512.7,2.04495]
[1756345502260,1.6058,4512.3,4512.2,0.2807]
[1756345502458,0.9726,4511.7,4511.6,0.86574]
[1756345502659,1.6058,4511.7,4511.6,0.2807]
[1756345502854,0.9324,4511.6,4511.5,3.2078]
[1756345503059,22.1188,4511.6,4511.5,3.2078]
[1756345503458,21.8948,4511.6,4511.5,4.4423]
[1756345503758,1.3818,4511.6,4511.5,4.8539]
[1756345503957,1.3818,4512.0,4511.9,1.6461]
[1756345504267,1.3818,4511.7,4511.6,0.4668]
[1756345504465,1.3818,4511.7,4511.6,1.2345]
[1756345505164,1.6058,4511.7,4511.6,0.2807]
[1756345505856,0.6734,4511.3,4511.2,1.3654]
[1756345506058,1.3818,4511.3,4511.2,1.6461]
[1756345507867,1.3818,4511.7,4511.6,2.04504]
[1756345508070,0.2835,4511.7,4511.6,2.04504]
[1756345508267,1.0826,4512.0,4511.9,0.39892]
[1756345508569,1.3818,4512.0,4511.9,2.04502]
[1756345509367,1.606,4512.0,4511.9,0.2807]
[1756345509567,1.606,4512.0,4511.5,1.11585]
[1756345509866,0.6734,4511.6,4511.5,0.2807]
[1756345510071,1.606,4511.6,4511.5,0.2807]
[1756345510963,1.3818,4511.6,4511.5,1.2345]
[1756345511167,1.3818,4511.6,4511.5,1.6461]
[1756345511468,3.2078,4511.8,4511.7,0.6485]
[1756345511668,1.1901,4512.1,4512.0,1.04741]
[1756345511860,3.6895,4512.3,4512.2,1.32809]
[1756345512059,4.5896,4512.3,4512.2,2.04499]
[1756345512463,1.3818,4512.3,4512.2,2.04499]
[1756345513264,0.7151,4512.2,4512.1,0.3989]
[1756345513460,1.606,4512.2,4512.1,0.3989]
[1756345514467,1.3818,4512.2,4512.1,2.045]
[1756345515174,0.4817,4512.2,4512.1,2.045]
[1756345515363,0.2835,4512.2,4512.1,2.045]
[1756345515668,0.6734,4512.5,4512.4,0.66607]
[1756345515866,4.2904,4512.8,4512.7,1.73965]
[1756345516069,3.2078,4512.8,4512.7,2.04495]
[1756345517266,0.2992,4513.0,4512.7,2.04495]
[1756345517267,0.9726,4513.0,4512.9,0.66603]
[1756345517568,33.3148,4513.6,4513.5,1.6461]
[1756345517770,0.7084,4513.5,4513.1,0.2807]
[1756345518064,0.6734,4513.0,4512.9,0.2807]
[1756345518368,0.6734,4513.0,4512.4,3.88737]
[1756345518572,1.606,4512.5,4512.4,41.0807]
[1756345518761,0.4752,4512.3,4512.2,0.2807]
[1756345519068,1.3818,4511.5,4511.4,5.25286]
[1756345520067,1.0826,4511.5,4511.4,5.25286]
[1756345520374,1.3818,4511.5,4511.4,1.6461]
[1756345521365,22.105,4511.5,4511.4,0.9292]
[1756345521561,0.9326,4511.4,4511.0,0.7169]
[1756345521761,1.3818,4511.1,4511.0,1.6461]
[1756345522270,1.3818,4511.1,4511.0,1.2345]
[1756345522471,1.3818,4511.1,4511.0,1.6461]
[1756345525675,1.0826,4511.4,4511.3,2.04507]
[1756345525868,21.8798,4511.4,4511.3,2.04507]
[1756345526168,0.4817,4511.4,4511.3,2.04507]
[1756345526367,0.4092,4511.7,4511.6,0.39895]
[1756345526565,20.9062,4511.7,4511.6,2.04505]
[1756345526761,21.3879,4511.7,4511.6,2.04505]
[1756345526975,3.4913,4511.8,4511.7,1.6461]
[1756345527180,4.2904,4511.8,4511.7,1.6461]
[1756345527468,3.6895,4511.8,4511.7,1.6461]
[1756345527773,4.2904,4511.8,4511.7,1.6461]
[1756345528373,3.2078,4511.8,4511.7,1.6461]
[1756345528574,4.2904,4511.8,4511.7,1.6461]
[1756345529975,4.8138,4511.8,4511.7,0.9292]
[1756345530277,3.2078,4511.8,4511.7,1.6461]
[1756345530979,0.7084,4512.7,4512.3,0.9976]
[1756345531178,3.2078,4512.8,4512.7,1.6461]
[1756345531481,0.2992,4513.1,4512.7,1.6461]
[1756345531780,0.4817,4513.1,4513.0,1.6461]
[1756345531981,0.4817,4513.1,4513.0,2.04493]
[1756345532381,1.0985,4513.1,4513.0,2.04493]
[1756345532583,1.394,4513.1,4513.0,2.04493]
[1756345534786,1.394,4513.1,4513.0,1.6461]
[1756345538691,1.6181,4513.1,4513.0,0.2807]
[1756345538885,0.4568,4512.5,4512.4,1.6855]
[1756345539085,21.5728,4512.5,4512.4,1.6855]
[1756345539491,21.3699,4512.5,4512.4,1.6855]
[1756345539686,21.8683,4512.5,4512.4,1.6855]
[1756345539892,22.0924,4512.5,4512.4,0.2843]
[1756345541489,0.6492,4512.1,4511.3,0.2843]
[1756345541682,0.9552,4511.1,4511.0,0.2843]
[1756345541882,1.3803,4511.1,4511.0,0.97]
[1756345542195,0.4568,4511.1,4511.0,1.6855]
[1756345542390,1.3803,4511.5,4511.4,1.6855]
[1756345542591,4.8613,4511.5,4511.4,1.6855]
[1756345542893,10.0073,4511.5,4511.4,1.6855]
[1756345543186,10.2314,4511.5,4511.4,0.97]
[1756345543893,10.2314,4511.5,4511.4,0.2843]
[1756345544292,1.3803,4511.5,4511.4,1.6855]
[1756345544482,14.7584,4511.5,4511.4,0.2843]
[1756345544686,14.7584,4511.5,4511.0,1.1145]
[1756345544889,1.6044,4511.4,4511.3,0.489]
[1756345545090,1.6044,4511.4,4511.3,1.273]
[1756345545292,1.6044,4511.4,4511.3,0.2843]
[1756345545493,0.9447,4511.3,4511.0,0.2843]
[1756345545694,1.6044,4511.1,4511.0,0.97]
[1756345545986,1.3803,4511.1,4511.0,1.6855]
[1756345547493,1.6044,4510.6,4510.2,0.39907]
[1756345547794,0.6597,4510.5,4510.4,1.273]
[1756345548393,1.3803,4510.5,4510.4,1.6855]
[1756345548595,1.6044,4510.5,4510.4,0.489]
[1756345549794,0.6597,4510.1,4509.6,0.303]
[1756345549990,0.6597,4509.6,4509.5,3.4921]
[1756345550190,1.6044,4509.6,4509.5,3.4921]
[1756345550492,1.3803,4509.6,4509.5,0.97]
[1756345550692,1.3803,4509.6,4509.5,1.273]
[1756345551196,1.3803,4509.6,4509.5,1.6855]
[1756345551791,1.3803,4509.6,4509.5,1.273]
[1756345551993,1.6044,4509.6,4509.5,0.2843]
[1756345552288,1.6044,4509.6,4508.9,3.2078]
[1756345552289,1.0848,4509.2,4509.1,0.489]
[1756345552488,1.0848,4509.2,4509.1,1.273]
[1756345552489,1.3803,4509.2,4509.1,1.273]
[1756345552799,1.3803,4509.2,4509.1,1.6855]
[1756345553195,0.2241,4509.5,4509.1,0.6857]
[1756345553196,0.4251,4509.4,4509.1,0.6857]
[1756345553493,0.4251,4509.4,4508.9,3.2078]
[1756345553494,0.4568,4509.5,4509.4,1.6855]
[1756345553699,1.3803,4509.5,4509.4,1.6855]
[1756345554804,1.3803,4509.5,4509.4,1.273]
[1756345555303,1.6044,4509.5,4509.4,0.97]
[1756345556704,1.3803,4509.5,4509.4,1.6855]
[1756345557703,3.2078,4509.6,4509.4,2.08464]
[1756345558004,3.2078,4509.6,4509.5,1.6855]
[1756345560300,4.5881,4509.6,4509.5,1.6855]
[1756345561400,0.4251,4510.0,4509.8,0.3991]
[1756345561600,0.2241,4510.4,4510.3,1.6881]
[1756345561601,1.1774,4510.4,4510.3,1.6881]
[1756345561807,3.2078,4510.6,4510.5,0.6756]
[1756345562001,0.3067,4510.8,4510.5,1.6729]
[1756345562204,20.486,4510.7,4510.6,1.6729]
[1756345562504,21.1419,4510.7,4510.6,1.6729]
[1756345562710,21.1419,4510.7,4510.6,0.2869]
[1756345562711,22.0916,4510.7,4510.6,0.2869]
[1756345563209,0.2244,4510.6,4510.3,0.2869]
[1756345563505,0.467,4509.6,4509.5,0.2869]
[1756345563715,1.3812,4509.6,4509.3,0.2869]
[1756345563916,6.4852,4509.5,4509.4,0.7648]
[1756345564120,1.3812,4509.5,4509.4,0.9625]
[1756345564320,11.5082,4509.5,4509.4,1.6729]
[1756345566220,11.5082,4509.5,4509.4,1.2418]
[1756345566512,11.7326,4509.5,4509.4,0.9625]
[1756345566718,11.7326,4509.5,4509.4,0.2869]
[1756345568519,0.9506,4509.4,4508.8,0.2869]
[1756345568716,1.6065,4508.9,4508.8,0.2869]
[1756345568915,1.3812,4508.6,4508.5,0.4846]
[1756345569116,22.0915,4508.6,4508.5,0.2869]
[1756345570214,1.1923,4508.1,4508.0,1.6729]
[1756345570419,1.3812,4508.1,4508.0,1.6729]
[1756345570822,1.0745,4508.1,4508.0,1.6729]
[1756345572023,1.6065,4508.1,4508.0,0.2869]
[1756345572720,1.6065,4508.1,4508.0,0.4846]
[1756345573326,1.3812,4508.1,4508.0,1.6729]
[1756345574024,1.1758,4508.1,4508.0,1.6729]
[1756345574226,1.3812,4508.1,4508.0,1.6729]
[1756345574825,0.7253,4508.5,4508.0,4.70937289]
[1756345575126,4.589,4508.7,4508.6,1.6729]
[1756345575826,3.2078,4508.7,4508.6,1.6729]
[1756345576320,4.0769,4508.7,4508.6,1.6729]
[1756345576515,0.8691,4508.7,4508.6,1.6729]
[1756345577125,1.6065,4508.7,4508.6,0.4846]
[1756345577426,1.6065,4508.7,4508.6,0.2869]
[1756345577615,9.985,4509.1,4508.0,1.2418]
[1756345577616,0.9142,4508.1,4508.0,1.2418]
[1756345577820,0.9142,4508.1,4508.0,1.6729]
[1756345577821,1.3812,4508.1,4508.0,1.6729]
[1756345580826,0.3067,4508.5,4508.0,1.07485]
[1756345581033,7.0742,4508.5,4508.4,1.6729]
[1756345581230,7.0742,4508.5,4508.4,0.9625]
[1756345581432,7.2995,4508.5,4508.4,0.9625]
[1756345582427,7.0742,4508.5,4508.4,1.6729]
[1756345582733,0.7253,4508.4,4507.9,3.4947]
[1756345583031,1.3812,4508.4,4508.3,1.1067]
[1756345583235,1.3812,4508.4,4508.3,1.386]
[1756345583429,1.3812,4508.4,4508.3,1.6729]
[1756345587532,0.2616,4508.4,4508.3,1.6729]
[1756345587834,1.0745,4508.6,4508.5,1.6729]
[1756345588023,1.3812,4508.6,4508.5,1.6729]
[1756345590725,20.484,4508.8,4508.5,0.6756]
[1756345590929,0.8691,4508.7,4508.6,1.4752]
[1756345591227,0.8691,4508.7,4508.6,1.6729]
[1756345591427,1.1758,4508.7,4508.6,1.6729]
[1756345591628,1.3812,4508.7,4508.6,1.6729]
[1756345599634,11.7732,4508.7,4508.6,1.6729]
[1756345599833,14.981,4508.7,4508.6,1.6729]
[1756345600234,15.2045,4508.7,4508.6,0.2869]
[1756345600636,15.2045,4508.7,4508.6,0.7816]
[1756345600843,25.068,4508.7,4508.6,1.6685]
[1756345603043,25.2915,4508.7,4508.6,1.6685]
[1756345604539,1.3812,4508.7,4508.6,1.6685]
[1756345604745,8.5336,4508.8,4508.7,2.0683]
[1756345604934,4.0869,4509.4,4509.3,2.06825]
[1756345605242,4.0869,4509.4,4509.3,3.47545225]
[1756345605243,3.2078,4509.4,4509.3,3.47545225]
[1756345605444,4.5634,4509.4,4509.3,3.47545225]
[1756345606239,4.5634,4509.4,4509.3,3.07630225]
[1756345606546,4.5634,4509.4,4509.3,1.6691]
[1756345607641,20.477,4509.7,4509.6,0.39912]
[1756345607948,52.414,4510.1,4510.0,2.06818]
[1756345608144,0.7008,4510.2,4510.0,2.47138225]
[1756345608346,3.2078,4510.4,4510.3,1.6691]
[1756345609440,9.771,4510.6,4510.4,0.39905]
[1756345609642,9.771,4510.6,4510.5,3.07630225]
[1756345610348,1.3556,4510.8,4510.7,1.6691]
[1756345611541,0.9453,4511.2,4511.1,1.88008]
[1756345611746,4.0869,4511.4,4511.3,1.06407]
[1756345611946,4.0869,4511.4,4511.3,2.06807]
[1756345612248,4.5634,4511.4,4511.3,1.6691]
[1756345612753,25.0334,4511.4,4511.3,1.6691]
[1756345612945,4.5634,4511.4,4511.3,1.6691]
[1756345613846,1.3556,4511.4,4511.3,1.6691]
[1756345614743,0.4501,4511.0,4510.9,0.2875]
[1756345614942,22.0471,4511.0,4510.9,0.2875]
[1756345616143,22.0471,4511.0,4510.9,0.4755]
[1756345616343,21.5311,4511.0,4510.9,1.6691]
[1756345616947,21.8216,4511.0,4510.9,1.6691]
[1756345618949,1.3556,4511.0,4510.9,1.6691]
[1756345619346,0.4501,4511.4,4511.3,0.4696]
[1756345619550,0.9453,4511.4,4511.3,1.6691]
[1756345619851,0.4688,4511.4,4511.3,1.6691]
[1756345620056,3.2078,4511.6,4511.5,0.6651]
[1756345620351,3.2078,4511.6,4511.5,1.6691]
[1756345620352,4.5538,4511.6,4511.5,1.6691]
[1756345620546,3.2078,4512.2,4512.1,1.0808]
[1756345620748,23.6698,4512.2,4512.1,1.6691]
[1756345621052,20.462,4512.4,4512.3,1.1995]
[1756345621248,21.8176,4512.4,4512.3,1.6691]
[1756345621449,1.3556,4512.4,4512.3,1.2593]
[1756345621753,1.388,4512.9,4512.8,2.03683]
[1756345622353,1.6129,4512.9,4512.5,0.39886]
[1756345622556,1.1031,4512.7,4512.6,0.67765]
[1756345622753,22.097,4512.7,4512.6,0.87385]
[1756345623056,22.097,4512.7,4512.6,1.07565]
[1756345623250,22.097,4512.7,4512.6,0.6768]
[1756345623450,22.097,4512.7,4512.6,0.2788]
[1756345623644,0.5339,4512.6,4512.4,0.2788]
[1756345623849,1.637,4512.5,4512.4,0.2788]
[1756345624044,1.2128,4512.4,4512.3,0.39888]
[1756345624251,0.2249,4512.3,4512.2,0.67769]
[1756345624451,22.094,4512.3,4512.2,0.87389]
[1756345624654,22.094,4512.3,4512.2,0.475]
[1756345625057,1.637,4512.0,4511.9,0.2788]
[1756345625351,1.637,4512.0,4511.8,3.2078]
[1756345625352,1.1515,4511.9,4511.8,3.2078]
[1756345625657,1.4381,4511.7,4511.6,41.0788]
[1756345626152,22.092,4511.7,4511.4,0.2948]
[1756345626355,1.637,4511.4,4511.3,3.2078]
[1756345626548,22.092,4511.4,4511.3,3.2078]
[1756345627659,22.092,4511.4,4511.3,3.4866]
[1756345627960,1.4121,4511.4,4511.3,4.4454]
[1756345628153,21.8661,4511.4,4511.3,4.4454]
[1756345628655,21.8661,4511.4,4511.3,4.8458]
[1756345628955,0.6789,4511.7,4511.6,1.06294]
[1756345629157,10.8501,4511.7,4511.6,1.638]
[1756345629653,10.8501,4511.7,4511.6,1.2376]
[1756345629849,10.8501,4511.7,4511.6,0.9428]
[1756345630056,11.0735,4511.7,4511.3,3.5026]
[1756345630250,1.6355,4511.5,4511.4,0.2788]
[1756345630558,1.6355,4511.5,4511.4,0.475]
[1756345630752,1.4121,4511.5,4511.4,0.9428]
[1756345630953,1.4121,4511.5,4511.4,1.638]
[1756345631555,1.4121,4511.5,4511.4,1.2376]
[1756345632360,1.4121,4511.5,4511.4,1.638]
[1756345632558,20.9375,4511.5,4511.4,1.638]
[1756345633461,0.4855,4511.5,4511.4,1.638]
[1756345634154,21.8631,4511.8,4511.7,1.638]